[Event "Titled Tuesday Blitz June 20 Late 2023"]
[White "Paravyan, David"]
[Black "Erdogmus, Yagiz Kaan"]
[WhiteFideId "4194985"]
[BlackFideId "44599790"]
[WhiteElo "2563"]
[BlackElo "2359"]
[Result "1-0"]
[Round "5"]
[TimeControl "180+2"]
[Date "2023.06.20"]
[WhiteClock "0:00:04"]
[BlackClock "0:00:06"]
[Board "7"]

1. e4 {[%clk 0:03:00]}  c5 {[%clk 0:02:59]} 2. Nf3 {[%clk 0:03:01]}  d6 {[%clk 0:02:59]} 3. d4 {[%clk 0:03:01]}  cxd4 {[%clk 0:02:59]} 4. Nxd4 {[%clk 0:03:02]}  Nf6 {[%clk 0:03:00]} 5. Nc3 {[%clk 0:03:02]}  a6 {[%clk 0:03:00]} 6. Bd3 {[%clk 0:03:02]}  e5 {[%clk 0:03:00]} 7. Nde2 {[%clk 0:03:02]}  Be7 {[%clk 0:03:00]} 8. O-O {[%clk 0:03:01]}  O-O {[%clk 0:02:59]} 9. Ng3 {[%clk 0:02:59]}  Be6 {[%clk 0:02:58]} 10. Nd5 {[%clk 0:02:58]}  Bxd5 {[%clk 0:02:50]} 11. exd5 {[%clk 0:02:59]}  g6 {[%clk 0:02:49]} 12. a4 {[%clk 0:02:58]}  Nbd7 {[%clk 0:02:45]} 13. a5 {[%clk 0:02:54]}  Rc8 {[%clk 0:02:44]} 14. c4 {[%clk 0:02:54]}  Ne8 {[%clk 0:02:41]} 15. Bh6 {[%clk 0:02:40]}  Ng7 {[%clk 0:02:41]} 16. b4 {[%clk 0:02:31]}  f5 {[%clk 0:02:39]} 17. Qd2 {[%clk 0:02:24]}  e4 {[%clk 0:02:37]} 18. Be2 {[%clk 0:02:23]}  Ne5 {[%clk 0:02:38]} 19. Rac1 {[%clk 0:02:20]}  Nf7 {[%clk 0:02:29]} 20. Be3 {[%clk 0:02:11]}  Bg5 {[%clk 0:02:26]} 21. c5 {[%clk 0:02:09]}  Bxe3 {[%clk 0:02:20]} 22. fxe3 {[%clk 0:02:06]}  dxc5 {[%clk 0:02:13]} 23. bxc5 {[%clk 0:02:06]}  Ne6 {[%clk 0:02:06]} 24. Nxe4 {[%clk 0:01:38]}  fxe4 {[%clk 0:01:59]} 25. Bg4 {[%clk 0:01:38]}  Nxc5 {[%clk 0:01:45]} 26. Bxc8 {[%clk 0:01:35]}  Nb3 {[%clk 0:01:45]} 27. Qf2 {[%clk 0:01:11]}  Nxc1 {[%clk 0:01:40]} 28. Be6 {[%clk 0:01:12]}  Nd3 {[%clk 0:01:36]} 29. Qd2 {[%clk 0:00:22]}  Kg7 {[%clk 0:01:29]} 30. Rb1 {[%clk 0:00:08]}  Nd6 {[%clk 0:01:12]} 31. Qc3+ {[%clk 0:00:05]}  Qf6 {[%clk 0:01:11]} 32. Qc7+ {[%clk 0:00:05]}  Kh8 {[%clk 0:01:10]} 33. h3 {[%clk 0:00:03]}  Qf2+ {[%clk 0:00:41]} 34. Kh1 {[%clk 0:00:02]}  Qg3 {[%clk 0:00:34]} 35. Qe7 {[%clk 0:00:02]}  Nf2+ {[%clk 0:00:33]} 36. Kg1 {[%clk 0:00:03]}  Nxh3+ {[%clk 0:00:24]} 37. Bxh3 {[%clk 0:00:02]}  Qxe3+ {[%clk 0:00:23]} 38. Kh1 {[%clk 0:00:03]}  Qf4 {[%clk 0:00:22]} 39. Re1 {[%clk 0:00:01]}  Qf2 {[%clk 0:00:18]} 40. Re2 {[%clk 0:00:01]}  Qf1+ {[%clk 0:00:17]} 41. Kh2 {[%clk 0:00:02]}  Qf4+ {[%clk 0:00:18]} 42. g3 {[%clk 0:00:02]}  Qf6 {[%clk 0:00:18]} 43. Qxf6+ {[%clk 0:00:01]}  Rxf6 {[%clk 0:00:18]} 44. Be6 {[%clk 0:00:02]}  Rf3 {[%clk 0:00:18]} 45. Rc2 {[%clk 0:00:02]}  Ra3 {[%clk 0:00:18]} 46. Rc7 {[%clk 0:00:02]}  e3 {[%clk 0:00:17]} 47. Kg2 {[%clk 0:00:03]}  Ra2+ {[%clk 0:00:17]} 48. Kf3 {[%clk 0:00:02]}  e2 {[%clk 0:00:17]} 49. Kf2 {[%clk 0:00:01]}  Ne4+ {[%clk 0:00:18]} 50. Ke1 {[%clk 0:00:02]}  Nxg3 {[%clk 0:00:16]} 51. Rc1 {[%clk 0:00:03]}  Rxa5 {[%clk 0:00:11]} 52. d6 {[%clk 0:00:03]}  Rh5 {[%clk 0:00:09]} 53. d7 {[%clk 0:00:03]}  Rh1+ {[%clk 0:00:09]} 54. Kd2 {[%clk 0:00:02]}  Rxc1 {[%clk 0:00:05]} 55. d8=Q+ {[%clk 0:00:02]}  Kg7 {[%clk 0:00:06]} 56. Qe7+ {[%clk 0:00:03]}  Kh6 {[%clk 0:00:06]} 57. Qh4+ {[%clk 0:00:03]}  Kg7 {[%clk 0:00:07]} 58. Qd4+ {[%clk 0:00:02]}  Kf8 {[%clk 0:00:04]} 59. Qf6+ {[%clk 0:00:02]}  Ke8 {[%clk 0:00:05]} 60. Qf7+ {[%clk 0:00:03]}  Kd8 {[%clk 0:00:06]} 61. Qd7# {[%clk 0:00:04]} 1-0


[Site "https://www.chess.com"]

[Event "Titled Tuesday Blitz June 20 Late 2023"]
[White "Elsa167"]
[Black "Terry, Renato"]
[BlackFideId "3803457"]
[WhiteElo "2829"]
[BlackElo "2575"]
[Result "0-1"]
[Round "5"]
[TimeControl "180+2"]
[Date "2023.06.20"]
[WhiteClock "0:00:00"]
[BlackClock "0:00:15"]
[Board "8"]

1. d4 {[%clk 0:03:00]}  e6 {[%clk 0:02:55]} 2. e4 {[%clk 0:03:00]}  d5 {[%clk 0:02:53]} 3. exd5 {[%clk 0:02:58]}  exd5 {[%clk 0:02:53]} 4. Nf3 {[%clk 0:02:59]}  Nc6 {[%clk 0:02:51]} 5. Bb5 {[%clk 0:02:59]}  Bd6 {[%clk 0:02:51]} 6. O-O {[%clk 0:02:55]}  Ne7 {[%clk 0:02:51]} 7. Re1 {[%clk 0:02:55]}  O-O {[%clk 0:02:50]} 8. h3 {[%clk 0:02:53]}  Bf5 {[%clk 0:02:46]} 9. c3 {[%clk 0:02:50]}  a6 {[%clk 0:02:39]} 10. Bd3 {[%clk 0:02:50]}  Qd7 {[%clk 0:02:38]} 11. Bg5 {[%clk 0:02:47]}  f6 {[%clk 0:02:38]} 12. Bh4 {[%clk 0:02:45]}  Rae8 {[%clk 0:02:34]} 13. Bg3 {[%clk 0:02:31]}  Bxg3 {[%clk 0:02:33]} 14. fxg3 {[%clk 0:02:31]}  Bxd3 {[%clk 0:02:33]} 15. Qxd3 {[%clk 0:02:31]}  Nf5 {[%clk 0:02:34]} 16. g4 {[%clk 0:02:23]}  Rxe1+ {[%clk 0:02:25]} 17. Nxe1 {[%clk 0:02:23]}  Re8 {[%clk 0:02:26]} 18. Nd2 {[%clk 0:02:21]}  Nd6 {[%clk 0:02:19]} 19. Nef3 {[%clk 0:02:15]}  Nd8 {[%clk 0:02:19]} 20. g5 {[%clk 0:02:06]}  fxg5 {[%clk 0:01:53]} 21. Nxg5 {[%clk 0:02:06]}  Qf5 {[%clk 0:01:53]} 22. Qxf5 {[%clk 0:01:59]}  Nxf5 {[%clk 0:01:54]} 23. Rf1 {[%clk 0:01:49]}  Ng3 {[%clk 0:01:42]} 24. Rd1 {[%clk 0:01:12]}  Re2 {[%clk 0:01:37]} 25. Ngf3 {[%clk 0:01:12]}  Ne4 {[%clk 0:01:19]} 26. Kf1 {[%clk 0:00:44]}  Ng3+ {[%clk 0:01:06]} 27. Kg1 {[%clk 0:00:45]}  Ne6 {[%clk 0:00:55]} 28. Re1 {[%clk 0:00:38]}  Nf4 {[%clk 0:00:54]} 29. Rxe2 {[%clk 0:00:12]}  Ngxe2+ {[%clk 0:00:55]} 30. Kf1 {[%clk 0:00:12]}  Nc1 {[%clk 0:00:55]} 31. a3 {[%clk 0:00:11]}  Ncd3 {[%clk 0:00:54]} 32. b4 {[%clk 0:00:11]}  Nb2 {[%clk 0:00:52]} 33. Ne1 {[%clk 0:00:05]}  Kf7 {[%clk 0:00:47]} 34. Kf2 {[%clk 0:00:04]}  g5 {[%clk 0:00:45]} 35. Kf3 {[%clk 0:00:04]}  Kf6 {[%clk 0:00:44]} 36. h4 {[%clk 0:00:04]}  h6 {[%clk 0:00:40]} 37. hxg5+ {[%clk 0:00:05]}  hxg5 {[%clk 0:00:40]} 38. g3 {[%clk 0:00:05]}  Nh5 {[%clk 0:00:36]} 39. Nf1 {[%clk 0:00:03]}  Na4 {[%clk 0:00:29]} 40. Kg4 {[%clk 0:00:02]}  Kg6 {[%clk 0:00:29]} 41. Ne3 {[%clk 0:00:02]}  Nxc3 {[%clk 0:00:28]} 42. Nd3 {[%clk 0:00:02]}  Nf6+ {[%clk 0:00:25]} 43. Kf3 {[%clk 0:00:02]}  Nb5 {[%clk 0:00:22]} 44. Ne5+ {[%clk 0:00:03]}  Kh7 {[%clk 0:00:20]} 45. Nc2 {[%clk 0:00:03]}  Kg7 {[%clk 0:00:18]} 46. a4 {[%clk 0:00:03]}  Nc3 {[%clk 0:00:18]} 47. a5 {[%clk 0:00:03]}  Nb5 {[%clk 0:00:19]} 48. Ke3 {[%clk 0:00:02]}  Kf8 {[%clk 0:00:19]} 49. Kd3 {[%clk 0:00:02]}  Ke7 {[%clk 0:00:19]} 50. Ne3 {[%clk 0:00:02]}  Ke6 {[%clk 0:00:19]} 51. g4 {[%clk 0:00:02]}  Nd6 {[%clk 0:00:18]} 52. Nf3 {[%clk 0:00:01]}  Nfe4 {[%clk 0:00:18]} 53. Ne5 {[%clk 0:00:01]}  Ne8 {[%clk 0:00:18]} 54. Nf3 {[%clk 0:00:01]}  N8f6 {[%clk 0:00:18]} 55. Ne5 {[%clk 0:00:01]}  c6 {[%clk 0:00:19]} 56. Nf3 {[%clk 0:00:01]}  Nf2+ {[%clk 0:00:19]} 57. Ke2 {[%clk 0:00:01]}  N2e4 {[%clk 0:00:20]} 58. Kd3 {[%clk 0:00:01]}  Kd6 {[%clk 0:00:20]} 59. Ne5 {[%clk 0:00:01]}  Ke7 {[%clk 0:00:20]} 60. Nf3 {[%clk 0:00:01]}  Ne8 {[%clk 0:00:20]} 61. Ne5 {[%clk 0:00:01]}  Nc7 {[%clk 0:00:20]} 62. Nf5+ {[%clk 0:00:02]}  Kf6 {[%clk 0:00:20]} 63. Nd7+ {[%clk 0:00:02]}  Ke6 {[%clk 0:00:19]} 64. Nc5+ {[%clk 0:00:03]}  Nxc5+ {[%clk 0:00:19]} 65. bxc5 {[%clk 0:00:04]}  Ne8 {[%clk 0:00:18]} 66. Ke3 {[%clk 0:00:03]}  Nf6 {[%clk 0:00:19]} 67. Kf3 {[%clk 0:00:01]}  Ne4 {[%clk 0:00:19]} 68. Ke3 {[%clk 0:00:02]}  Kd7 {[%clk 0:00:18]} 69. Kf3 {[%clk 0:00:02]}  Nd2+ {[%clk 0:00:18]} 70. Ke3 {[%clk 0:00:02]}  Nc4+ {[%clk 0:00:19]} 71. Kd3 {[%clk 0:00:03]}  Nxa5 {[%clk 0:00:19]} 72. Nd6 {[%clk 0:00:03]}  Ke6 {[%clk 0:00:18]} 73. Kc3 {[%clk 0:00:02]}  b5 {[%clk 0:00:17]} 74. Kb4 {[%clk 0:00:01]}  Nc4 {[%clk 0:00:18]} 75. Nb7 {[%clk 0:00:00]}  Kd7 {[%clk 0:00:15]} 0-1


[Site "https://www.chess.com"]

[Event "Titled Tuesday Blitz June 20 Late 2023"]
[White "Cardoso Cardoso, Jose Gabriel"]
[Black "Hakobyan, Aram"]
[WhiteFideId "4430492"]
[BlackFideId "13306677"]
[WhiteElo "2484"]
[BlackElo "2584"]
[Result "1-0"]
[Round "5"]
[TimeControl "180+2"]
[Date "2023.06.20"]
[WhiteClock "0:02:24"]
[BlackClock "0:02:57"]
[Board "9"]

1. e4 {[%clk 0:03:00]}  c5 {[%clk 0:02:58]} 2. Nf3 {[%clk 0:03:00]}  d6 {[%clk 0:02:59]} 3. d4 {[%clk 0:03:00]}  cxd4 {[%clk 0:02:59]} 4. Nxd4 {[%clk 0:03:01]}  Nf6 {[%clk 0:02:59]} 5. Nc3 {[%clk 0:03:02]}  a6 {[%clk 0:03:00]} 6. Bg5 {[%clk 0:03:00]}  e6 {[%clk 0:03:00]} 7. f4 {[%clk 0:02:59]}  h6 {[%clk 0:03:00]} 8. Bh4 {[%clk 0:02:59]}  Qb6 {[%clk 0:03:00]} 9. Qd2 {[%clk 0:02:59]}  Qxb2 {[%clk 0:03:00]} 10. Rb1 {[%clk 0:02:59]}  Qa3 {[%clk 0:03:00]} 11. e5 {[%clk 0:03:00]}  dxe5 {[%clk 0:02:57]} 12. fxe5 {[%clk 0:03:01]}  Nd5 {[%clk 0:02:57]} 13. Nxd5 {[%clk 0:02:58]}  exd5 {[%clk 0:02:58]} 14. e6 {[%clk 0:02:58]}  Bxe6 {[%clk 0:02:58]} 15. Nxe6 {[%clk 0:02:37]}  fxe6 {[%clk 0:02:59]} 16. Bd3 {[%clk 0:02:26]}  Nd7 {[%clk 0:02:57]} 17. Bg6# {[%clk 0:02:24]} 1-0


[Site "https://www.chess.com"]

[Event "Titled Tuesday Blitz June 20 Late 2023"]
[White "Anton Guijarro, David"]
[Black "Sattarov, Bobir"]
[WhiteFideId "2285525"]
[BlackFideId "14203081"]
[WhiteElo "2618"]
[BlackElo "2351"]
[Result "1-0"]
[Round "5"]
[TimeControl "180+2"]
[Date "2023.06.20"]
[WhiteClock "0:00:45"]
[BlackClock "0:00:21"]
[Board "11"]

1. Nf3 {[%clk 0:03:00]}  d5 {[%clk 0:02:59]} 2. c4 {[%clk 0:03:01]}  e6 {[%clk 0:02:59]} 3. g3 {[%clk 0:03:01]}  Nf6 {[%clk 0:02:58]} 4. Bg2 {[%clk 0:03:01]}  dxc4 {[%clk 0:02:51]} 5. Qa4+ {[%clk 0:03:00]}  Nbd7 {[%clk 0:02:37]} 6. Qxc4 {[%clk 0:02:58]}  c5 {[%clk 0:02:36]} 7. d3 {[%clk 0:02:55]}  b6 {[%clk 0:02:32]} 8. Nd4 {[%clk 0:02:47]}  Ne5 {[%clk 0:02:05]} 9. Nc6 {[%clk 0:02:44]}  Nxc6 {[%clk 0:02:01]} 10. Bxc6+ {[%clk 0:02:45]}  Bd7 {[%clk 0:02:01]} 11. Bxa8 {[%clk 0:02:46]}  Qxa8 {[%clk 0:02:02]} 12. O-O {[%clk 0:02:44]}  h5 {[%clk 0:02:02]} 13. Bg5 {[%clk 0:02:15]}  Ng4 {[%clk 0:01:57]} 14. h4 {[%clk 0:01:59]}  f6 {[%clk 0:01:22]} 15. Bf4 {[%clk 0:01:46]}  e5 {[%clk 0:01:21]} 16. Bd2 {[%clk 0:01:44]}  g5 {[%clk 0:01:21]} 17. f3 {[%clk 0:01:32]}  Nh6 {[%clk 0:01:14]} 18. Qe4 {[%clk 0:01:20]}  Qb8 {[%clk 0:00:57]} 19. Qg6+ {[%clk 0:01:04]}  Nf7 {[%clk 0:00:56]} 20. hxg5 {[%clk 0:00:52]}  h4 {[%clk 0:00:44]} 21. Nc3 {[%clk 0:00:48]}  c4 {[%clk 0:00:43]} 22. Ne4 {[%clk 0:00:47]}  Bc5+ {[%clk 0:00:34]} 23. Nxc5 {[%clk 0:00:46]}  bxc5 {[%clk 0:00:35]} 24. Qxf6 {[%clk 0:00:46]}  e4 {[%clk 0:00:21]} 25. Bf4 {[%clk 0:00:45]} 1-0


[Site "https://www.chess.com"]

[Event "Titled Tuesday Blitz June 20 Late 2023"]
[White "Eljanov, Pavel"]
[Black "Leitao, Rafael"]
[WhiteFideId "14102951"]
[BlackFideId "2101246"]
[WhiteElo "2598"]
[BlackElo "2609"]
[Result "1/2-1/2"]
[Round "5"]
[TimeControl "180+2"]
[Date "2023.06.20"]
[WhiteClock "0:00:11"]
[BlackClock "0:00:06"]
[Board "12"]

1. d4 {[%clk 0:03:00]}  Nf6 {[%clk 0:02:59]} 2. c4 {[%clk 0:03:01]}  g6 {[%clk 0:02:56]} 3. Nc3 {[%clk 0:03:01]}  Bg7 {[%clk 0:02:56]} 4. e4 {[%clk 0:03:01]}  d6 {[%clk 0:02:57]} 5. Be2 {[%clk 0:03:01]}  O-O {[%clk 0:02:56]} 6. Be3 {[%clk 0:03:01]}  e5 {[%clk 0:02:55]} 7. d5 {[%clk 0:03:00]}  a5 {[%clk 0:02:52]} 8. g4 {[%clk 0:02:47]}  Na6 {[%clk 0:02:51]} 9. g5 {[%clk 0:02:42]}  Nd7 {[%clk 0:02:51]} 10. Nf3 {[%clk 0:02:38]}  Ndc5 {[%clk 0:02:43]} 11. h4 {[%clk 0:02:31]}  c6 {[%clk 0:02:22]} 12. Nd2 {[%clk 0:02:26]}  f5 {[%clk 0:02:09]} 13. a3 {[%clk 0:01:42]}  Bd7 {[%clk 0:02:01]} 14. f3 {[%clk 0:01:30]}  cxd5 {[%clk 0:01:54]} 15. cxd5 {[%clk 0:01:30]}  a4 {[%clk 0:01:50]} 16. Nc4 {[%clk 0:01:14]}  Qc7 {[%clk 0:01:32]} 17. O-O {[%clk 0:01:10]}  b5 {[%clk 0:01:27]} 18. Nd2 {[%clk 0:01:09]}  b4 {[%clk 0:01:25]} 19. Na2 {[%clk 0:00:48]}  Rab8 {[%clk 0:00:51]} 20. Rc1 {[%clk 0:00:46]}  bxa3 {[%clk 0:00:35]} 21. bxa3 {[%clk 0:00:34]}  Bb5 {[%clk 0:00:34]} 22. Nb4 {[%clk 0:00:20]}  Bxe2 {[%clk 0:00:32]} 23. Qxe2 {[%clk 0:00:21]}  Nxb4 {[%clk 0:00:32]} 24. axb4 {[%clk 0:00:21]}  Rxb4 {[%clk 0:00:32]} 25. Bxc5 {[%clk 0:00:21]}  dxc5 {[%clk 0:00:32]} 26. Nc4 {[%clk 0:00:22]}  Qd7 {[%clk 0:00:26]} 27. Kg2 {[%clk 0:00:18]}  Rfb8 {[%clk 0:00:23]} 28. d6 {[%clk 0:00:17]}  Rb3 {[%clk 0:00:22]} 29. Qd1 {[%clk 0:00:15]}  Kh8 {[%clk 0:00:19]} 30. Qd5 {[%clk 0:00:15]}  fxe4 {[%clk 0:00:19]} 31. Qxe4 {[%clk 0:00:14]}  a3 {[%clk 0:00:19]} 32. Rf2 {[%clk 0:00:14]}  Rf8 {[%clk 0:00:17]} 33. Rd1 {[%clk 0:00:13]}  Rbb8 {[%clk 0:00:15]} 34. Nxe5 {[%clk 0:00:13]}  Qe6 {[%clk 0:00:11]} 35. Nc4 {[%clk 0:00:13]}  Qxe4 {[%clk 0:00:11]} 36. fxe4 {[%clk 0:00:14]}  Rxf2+ {[%clk 0:00:11]} 37. Kxf2 {[%clk 0:00:14]}  a2 {[%clk 0:00:12]} 38. d7 {[%clk 0:00:14]}  a1=Q {[%clk 0:00:10]} 39. Rxa1 {[%clk 0:00:14]}  Bxa1 {[%clk 0:00:10]} 40. e5 {[%clk 0:00:14]}  Kg7 {[%clk 0:00:10]} 41. e6 {[%clk 0:00:13]}  Kf8 {[%clk 0:00:10]} 42. Na5 {[%clk 0:00:11]}  Ke7 {[%clk 0:00:08]} 43. Nc6+ {[%clk 0:00:12]}  Kxe6 {[%clk 0:00:09]} 44. Nxb8 {[%clk 0:00:13]}  Ke7 {[%clk 0:00:09]} 45. Ke3 {[%clk 0:00:12]}  Bd4+ {[%clk 0:00:09]} 46. Ke4 {[%clk 0:00:12]}  Bf2 {[%clk 0:00:07]} 47. Kd5 {[%clk 0:00:12]}  c4 {[%clk 0:00:07]} 48. Nc6+ {[%clk 0:00:11]}  Kxd7 {[%clk 0:00:07]} 49. Ne5+ {[%clk 0:00:11]}  Ke7 {[%clk 0:00:08]} 50. Nc6+ {[%clk 0:00:09]}  Kf8 {[%clk 0:00:07]} 51. Kxc4 {[%clk 0:00:09]}  Bxh4 {[%clk 0:00:07]} 52. Nd4 {[%clk 0:00:09]}  Bxg5 {[%clk 0:00:07]} 53. Ne6+ {[%clk 0:00:09]}  Kf7 {[%clk 0:00:05]} 54. Nxg5+ {[%clk 0:00:10]}  Kf6 {[%clk 0:00:05]} 55. Nxh7+ {[%clk 0:00:10]}  Kf5 {[%clk 0:00:05]} 56. Kd5 {[%clk 0:00:10]}  g5 {[%clk 0:00:06]} 57. Nxg5 {[%clk 0:00:11]} 1/2-1/2


[Site "https://www.chess.com"]

[Event "Titled Tuesday Blitz June 20 Late 2023"]
[White "Riehle, Marco"]
[Black "Saric, Ivan"]
[WhiteFideId "12904392"]
[BlackFideId "14508150"]
[WhiteElo "2462"]
[BlackElo "2576"]
[Result "1-0"]
[Round "5"]
[TimeControl "180+2"]
[Date "2023.06.20"]
[WhiteClock "0:00:36"]
[BlackClock "0:00:00"]
[Board "14"]

1. e4 {[%clk 0:02:56]}  g6 {[%clk 0:03:00]} 2. d4 {[%clk 0:02:56]}  d6 {[%clk 0:03:00]} 3. c4 {[%clk 0:02:56]}  Bg7 {[%clk 0:02:59]} 4. Nc3 {[%clk 0:02:57]}  Nf6 {[%clk 0:02:59]} 5. f3 {[%clk 0:02:57]}  O-O {[%clk 0:02:59]} 6. Be3 {[%clk 0:02:57]}  a6 {[%clk 0:02:59]} 7. Qd2 {[%clk 0:02:56]}  Nbd7 {[%clk 0:02:54]} 8. h4 {[%clk 0:02:54]}  h5 {[%clk 0:02:51]} 9. O-O-O {[%clk 0:02:52]}  b5 {[%clk 0:02:49]} 10. Nge2 {[%clk 0:02:44]}  Bb7 {[%clk 0:02:44]} 11. Nf4 {[%clk 0:02:34]}  e5 {[%clk 0:02:42]} 12. Nfd5 {[%clk 0:02:29]}  exd4 {[%clk 0:02:37]} 13. Bxd4 {[%clk 0:02:29]}  Ne5 {[%clk 0:02:29]} 14. Kb1 {[%clk 0:02:02]}  bxc4 {[%clk 0:01:55]} 15. Bxe5 {[%clk 0:01:59]}  dxe5 {[%clk 0:01:52]} 16. Bxc4 {[%clk 0:02:00]}  Nxd5 {[%clk 0:01:43]} 17. Bxd5 {[%clk 0:01:55]}  c6 {[%clk 0:01:42]} 18. Bc4 {[%clk 0:01:55]}  Qxd2 {[%clk 0:01:39]} 19. Rxd2 {[%clk 0:01:55]}  Rfd8 {[%clk 0:01:39]} 20. Rhd1 {[%clk 0:01:55]}  Rxd2 {[%clk 0:01:19]} 21. Rxd2 {[%clk 0:01:55]}  Rf8 {[%clk 0:01:18]} 22. Rd7 {[%clk 0:01:53]}  Bc8 {[%clk 0:01:18]} 23. Rc7 {[%clk 0:01:53]}  Bf6 {[%clk 0:01:16]} 24. Bxf7+ {[%clk 0:01:50]}  Rxf7 {[%clk 0:01:10]} 25. Rxc8+ {[%clk 0:01:50]}  Kg7 {[%clk 0:01:10]} 26. Rxc6 {[%clk 0:01:50]}  Bxh4 {[%clk 0:01:11]} 27. Rxa6 {[%clk 0:01:49]}  g5 {[%clk 0:01:10]} 28. Re6 {[%clk 0:01:36]}  Bg3 {[%clk 0:01:03]} 29. Nd5 {[%clk 0:01:36]}  g4 {[%clk 0:01:03]} 30. fxg4 {[%clk 0:01:31]}  Rf1+ {[%clk 0:00:48]} 31. Kc2 {[%clk 0:01:31]}  h4 {[%clk 0:00:46]} 32. Ne3 {[%clk 0:01:24]}  Rf2+ {[%clk 0:00:40]} 33. Kd3 {[%clk 0:01:04]}  Rxb2 {[%clk 0:00:38]} 34. g5 {[%clk 0:00:57]}  Bf4 {[%clk 0:00:16]} 35. Nf5+ {[%clk 0:00:57]}  Kf7 {[%clk 0:00:13]} 36. Rf6+ {[%clk 0:00:57]}  Kg8 {[%clk 0:00:11]} 37. Ne7+ {[%clk 0:00:45]}  Kg7 {[%clk 0:00:11]} 38. Nf5+ {[%clk 0:00:45]}  Kg8 {[%clk 0:00:11]} 39. g6 {[%clk 0:00:46]}  Rxg2 {[%clk 0:00:11]} 40. Ne7+ {[%clk 0:00:46]}  Kg7 {[%clk 0:00:10]} 41. Rf7+ {[%clk 0:00:47]}  Kh6 {[%clk 0:00:10]} 42. Nf5+ {[%clk 0:00:43]}  Kg5 {[%clk 0:00:04]} 43. g7 {[%clk 0:00:40]}  Kh5 {[%clk 0:00:04]} 44. Rf8 {[%clk 0:00:39]}  h3 {[%clk 0:00:04]} 45. Rh8+ {[%clk 0:00:37]}  Kg4 {[%clk 0:00:01]} 46. g8=Q+ {[%clk 0:00:36]}  Kf3 {[%clk 0:00:00]} 47. Rxh3+ {[%clk 0:00:36]} 1-0


[Site "https://www.chess.com"]

[Event "Titled Tuesday Blitz June 20 Late 2023"]
[White "Zakhartsov, Vladimir"]
[Black "Turayev, Shahruh"]
[WhiteFideId "4145097"]
[BlackFideId "14003856"]
[WhiteElo "2508"]
[BlackElo "2113"]
[Result "1-0"]
[Round "5"]
[TimeControl "180+2"]
[Date "2023.06.20"]
[WhiteClock "0:01:46"]
[BlackClock "0:00:24"]
[Board "15"]

1. d4 {[%clk 0:02:55]}  d5 {[%clk 0:02:58]} 2. c4 {[%clk 0:02:53]}  e6 {[%clk 0:02:58]} 3. Nf3 {[%clk 0:02:52]}  Nf6 {[%clk 0:02:58]} 4. g3 {[%clk 0:02:52]}  dxc4 {[%clk 0:02:58]} 5. Bg2 {[%clk 0:02:52]}  Nc6 {[%clk 0:02:58]} 6. Qa4 {[%clk 0:02:49]}  Bb4+ {[%clk 0:02:54]} 7. Bd2 {[%clk 0:02:49]}  Nd5 {[%clk 0:02:54]} 8. Bxb4 {[%clk 0:02:48]}  Nxb4 {[%clk 0:02:52]} 9. O-O {[%clk 0:02:49]}  O-O {[%clk 0:02:48]} 10. a3 {[%clk 0:02:47]}  Nd5 {[%clk 0:02:45]} 11. Qxc4 {[%clk 0:02:47]}  Nb6 {[%clk 0:02:43]} 12. Qc3 {[%clk 0:02:38]}  a5 {[%clk 0:02:35]} 13. b3 {[%clk 0:02:35]}  Ne7 {[%clk 0:02:29]} 14. Nbd2 {[%clk 0:02:30]}  Ng6 {[%clk 0:02:17]} 15. Nc4 {[%clk 0:02:20]}  Nxc4 {[%clk 0:02:14]} 16. bxc4 {[%clk 0:02:21]}  Bd7 {[%clk 0:02:10]} 17. e4 {[%clk 0:02:17]}  c6 {[%clk 0:02:05]} 18. c5 {[%clk 0:02:14]}  b5 {[%clk 0:02:00]} 19. cxb6 {[%clk 0:02:14]}  Qxb6 {[%clk 0:02:00]} 20. Rab1 {[%clk 0:02:14]}  Qc7 {[%clk 0:01:57]} 21. h4 {[%clk 0:02:13]}  Rfb8 {[%clk 0:01:13]} 22. h5 {[%clk 0:02:12]}  Ne7 {[%clk 0:01:12]} 23. Qc5 {[%clk 0:02:01]}  Be8 {[%clk 0:01:05]} 24. h6 {[%clk 0:01:55]}  gxh6 {[%clk 0:01:04]} 25. Ne5 {[%clk 0:01:55]}  Ng6 {[%clk 0:00:59]} 26. Ng4 {[%clk 0:01:54]}  Kg7 {[%clk 0:00:57]} 27. Qh5 {[%clk 0:01:53]}  Qe7 {[%clk 0:00:50]} 28. Qxh6+ {[%clk 0:01:50]}  Kg8 {[%clk 0:00:50]} 29. e5 {[%clk 0:01:50]}  Nf8 {[%clk 0:00:35]} 30. Nf6+ {[%clk 0:01:47]}  Kh8 {[%clk 0:00:24]} 31. Be4 {[%clk 0:01:46]} 1-0


[Site "https://www.chess.com"]

[Event "Titled Tuesday Blitz June 20 Late 2023"]
[White "Suarez Uriel, Adrian"]
[Black "Rustemov, Alexander"]
[WhiteFideId "22230874"]
[BlackFideId "4119002"]
[WhiteElo "2331"]
[BlackElo "2873"]
[Result "0-1"]
[Round "5"]
[TimeControl "180+2"]
[Date "2023.06.20"]
[WhiteClock "0:00:00"]
[BlackClock "0:00:16"]
[Board "16"]

1. e4 {[%clk 0:02:58]}  e6 {[%clk 0:02:59]} 2. d4 {[%clk 0:02:58]}  d5 {[%clk 0:03:00]} 3. e5 {[%clk 0:02:59]}  c5 {[%clk 0:02:59]} 4. c3 {[%clk 0:03:00]}  Qb6 {[%clk 0:03:00]} 5. Nf3 {[%clk 0:02:59]}  Bd7 {[%clk 0:03:00]} 6. Bd3 {[%clk 0:02:49]}  cxd4 {[%clk 0:02:58]} 7. cxd4 {[%clk 0:02:48]}  Nc6 {[%clk 0:02:54]} 8. Bc2 {[%clk 0:02:34]}  Nge7 {[%clk 0:02:41]} 9. O-O {[%clk 0:02:33]}  Nb4 {[%clk 0:02:29]} 10. Bb3 {[%clk 0:02:23]}  Qa6 {[%clk 0:02:22]} 11. Nc3 {[%clk 0:02:19]}  Nd3 {[%clk 0:02:07]} 12. Qe2 {[%clk 0:01:57]}  Nxc1 {[%clk 0:02:05]} 13. Qxa6 {[%clk 0:01:55]}  bxa6 {[%clk 0:02:05]} 14. Raxc1 {[%clk 0:01:56]}  Nc8 {[%clk 0:01:58]} 15. Na4 {[%clk 0:01:55]}  Be7 {[%clk 0:01:50]} 16. Nc5 {[%clk 0:01:52]}  a5 {[%clk 0:01:31]} 17. Na6 {[%clk 0:00:50]}  Kd8 {[%clk 0:01:27]} 18. a4 {[%clk 0:00:44]}  Nb6 {[%clk 0:01:24]} 19. Nc5 {[%clk 0:00:33]}  Bxc5 {[%clk 0:01:06]} 20. Rxc5 {[%clk 0:00:32]}  Bxa4 {[%clk 0:00:59]} 21. Ba2 {[%clk 0:00:29]}  Bd7 {[%clk 0:00:50]} 22. Rxa5 {[%clk 0:00:28]}  Ke7 {[%clk 0:00:50]} 23. Nd2 {[%clk 0:00:25]}  Rhc8 {[%clk 0:00:45]} 24. Rc5 {[%clk 0:00:16]}  Na4 {[%clk 0:00:43]} 25. Rxc8 {[%clk 0:00:11]}  Rxc8 {[%clk 0:00:44]} 26. Bb3 {[%clk 0:00:10]}  Nxb2 {[%clk 0:00:42]} 27. Ra1 {[%clk 0:00:11]}  Rc7 {[%clk 0:00:42]} 28. Kf1 {[%clk 0:00:10]}  Nd3 {[%clk 0:00:41]} 29. Ke2 {[%clk 0:00:09]}  Nb4 {[%clk 0:00:38]} 30. Ba4 {[%clk 0:00:07]}  Bxa4 {[%clk 0:00:31]} 31. Rxa4 {[%clk 0:00:05]}  Nc6 {[%clk 0:00:32]} 32. Nb3 {[%clk 0:00:05]}  f6 {[%clk 0:00:28]} 33. Ke1 {[%clk 0:00:05]}  fxe5 {[%clk 0:00:27]} 34. dxe5 {[%clk 0:00:05]}  Nxe5 {[%clk 0:00:28]} 35. Nd4 {[%clk 0:00:06]}  Kf6 {[%clk 0:00:19]} 36. Ra6 {[%clk 0:00:05]}  Re7 {[%clk 0:00:18]} 37. Ke2 {[%clk 0:00:04]}  g5 {[%clk 0:00:18]} 38. f3 {[%clk 0:00:03]}  Nc4 {[%clk 0:00:18]} 39. Nc6 {[%clk 0:00:00]}  Rb7 {[%clk 0:00:16]} 0-1


[Site "https://www.chess.com"]